Cogmind - Beta 10.2 *** ADVENTURER MODE // 2021.01.09 @ 23:27:08 Player: Scribs Result: Self-destructed Performance ------------- Evolutions (2) 1000 Regions Visited (6) 1200 Robots Destroyed (18) 90 Value Destroyed (481) 481 Prototype IDs (1) 20 Alien Tech Used (0) 0 Bonus (0) 0 TOTAL SCORE: 2791 Bonus ------- None Cogmind --------- Core Integrity 305/550 Matter 290/300 Energy 138/140 System Corruption 0% Temperature Cool (14) Movement Flying (245) Ox3 Location -8/Materials Parts ------- > --- POWER (1) -------- Light Deuterium Engine > --- PROPULSION (4) --- Improved VTOL Module > --- UTILITY (4) ------ Large Storage Unit Improved Power Shielding > --- WEAPON (2) ------- Improved Datajack > --- INVENTORY (10) --- Nuclear Core Nuclear Core Nuclear Core Nuclear Core Aluminum Leg High-capacity Matter Pod (200) Advanced Sensor Array Advanced Sensor Array Peak State ------------ > --- POWER ------------ Light Deuterium Engine > --- PROPULSION ------- Improved VTOL Module > --- UTILITY ---------- Large Storage Unit Advanced Sensor Array Improved Power Shielding > --- WEAPON ----------- Pulse Rifle Improved Datajack > --- INVENTORY -------- Nuclear Core Nuclear Core Nuclear Core Nuclear Core Aluminum Leg High-capacity Matter Pod Advanced Sensor Array Advanced Sensor Array [Rating: 22] Favorites ----------- Power Nuclear Core Engine Light Ion Engine Power Core Nuclear Core Propulsion Aluminum Leg Leg Aluminum Leg Flight Unit Improved VTOL Module Utility Large Storage Unit Device Advanced Sensor Array Storage Large Storage Unit Protection Improved Power Shielding Weapon Assault Rifle Energy Gun Medium Laser Ballistic Gun Assault Rifle Special Melee Weapon Improved Datajack Build | -11 -10 -9 -9 -9 -8 -8 ------- Run | Scr Mat Mat Min Exi Min Mat Slots Evolved 4 | . . 2 . . . 2 Power . | . . . . . . . Propulsion 2 | . . 1 . . . 1 Utility 2 | . . 1 . . . 1 Weapon . | . . . . . . . Parts Attached 26 | 6 2 7 . 1 4 6 Power 5 | 1 . 1 . 1 1 1 Engine 2 | 1 . . . . . 1 Core 3 | . . 1 . 1 1 . Reactor . | . . . . . . . Propulsion 7 | 2 . 2 . . 2 1 Treads . | . . . . . . . Leg 6 | 2 . 2 . . 2 . Wheel . | . . . . . . . Hover . | . . . . . . . Flight 1 | . . . . . . 1 Utility 7 | 1 2 2 . . . 2 Device 3 | . . 2 . . . 1 Storage 3 | 1 2 . . . . . Processor . | . . . . . . . Hackware . | . . . . . . . Protection 1 | . . . . . . 1 Artifact . | . . . . . . . Weapon 7 | 2 . 2 . . 1 2 Energy Gun 5 | 1 . 2 . . 1 1 Energy Cannon . | . . . . . . . Ballistic Gun 1 | 1 . . . . . . Ballistic Cannon . | . . . . . . . Launcher . | . . . . . . . Special Weapon . | . . . . . . . Impact Weapon . | . . . . . . . Slashing Weapon . | . . . . . . . Piercing Weapon . | . . . . . . . Special Melee Weapon 1 | . . . . . . 1 Unidentified Prototypes 1 | . . . . . . 1 Parts Lost 13 | . . 1 . . 7 5 Power 1 | . . . . . . 1 Propulsion 5 | . . . . . 3 2 Utility 2 | . . . . . 1 1 Weapon 5 | . . 1 . . 3 1 Highest Loss Streak 7 | . . 1 . . 7 2 Average Slot Usage (%) 88 | . 99 93 100 100 87 46 Engine 3 | . 14 1 . . . 5 Core 7 | . . 9 11 11 11 2 Leg 26 | . 28 28 33 33 26 10 Device 15 | . . 18 22 22 20 8 Storage 13 | . 27 12 11 11 11 9 Energy Gun 9 | . 14 10 11 11 9 3 Ballistic Gun 9 | . 14 11 11 11 8 . Naked Turns . | . . . . . . . Heaviest Build 38 | 11 27 38 35 35 35 28 Greatest Support 30 | 20 20 30 30 30 30 20 Greatest Overweight (x) 9 | 2 1 1 1 1 8 9 Average Overweight (x) 1 | . . 1 1 . 1 1 Largest Inventory Capacity 10 | 6 10 10 10 10 10 10 Average Capacity 9 | 5 8 10 10 10 10 10 Most Carried 10 | 2 5 10 9 10 10 9 Average Carried 7 | 1 3 9 9 9 8 8 Final Capacity 10 | 6 10 10 10 10 10 10 Final Carried 9 | 2 5 9 9 9 8 8 Class Distribution -------------------- 100% | Mutant Dominant Class ---------------- Mutant | -10/Materials Mutant | -9/Materials Mutant | -9/Mines Mutant | -9/Exiles Mutant | -8/Mines Mutant | -8/Materials Resources | -11 -10 -9 -9 -9 -8 -8 ----------- Run | Scr Mat Mat Min Exi Min Mat Matter Collected 713 | 186 81 367 . . 44 35 Remotely . | . . . . . . . Salvage Created 602 | . 99 308 . . 102 93 Parts 42 | . 13 20 . . 6 3 Haulers Intercepted . | . . . . . . . Recyclers Shooed 1 | . . . . . . 1 Parts Field Recycled . | . . . . . . . Retrieved Matter . | . . . . . . . Parts Self-Destructed . | . . . . . . . Prevented . | . . . . . . . Kills | -11 -10 -9 -9 -9 -8 -8 ------- Run | Scr Mat Mat Min Exi Min Mat Combat Hostiles Destroyed 17 | . 6 7 . . 2 2 Guns 17 | . 6 7 . . 2 2 Classes Destroyed 4 | . 1 3 . . . . Worker 1 | . . 1 . . . . Swarmer 7 | . 6 1 . . . . Grunt 6 | . . 4 . . 2 . Sentry 4 | . . 2 . . . 2 Best Kill Streak 4 | . 4 2 . . 2 2 Combat Bots Only 4 | . 4 2 . . 2 2 Max Kills in Single Turn 1 | . 1 1 . . 1 1 Gunslinging . | . . . . . . . Exploded . | . . . . . . . Melee . | . . . . . . . Uniques/NPCs Destroyed . | . . . . . . . Combat | -11 -10 -9 -9 -9 -8 -8 -------- Run | Scr Mat Mat Min Exi Min Mat Damage Taken 1760 | . 68 446 4 . 559 683 Core 545 | . 13 92 . . 195 245 Absorbed by Shields . | . . . . . . . Core Remaining (%) 74 | 100 94 . . . 28 . Volleys Fired 61 | . 7 21 . . 19 14 Largest 2 | . 2 2 . . 2 1 Hottest 70 | . 70 70 . . 70 63 Shots Fired 98 | . 14 42 . . 28 14 Gun 98 | . 14 42 . . 28 14 Cannon . | . . . . . . . Launcher . | . . . . . . . Special . | . . . . . . . Kinetic 39 | . 7 21 . . 11 . Thermal 59 | . 7 21 . . 17 14 Explosive . | . . . . . . . Electromagnetic . | . . . . . . . Robot Hit Streak 36 | . 6 16 . . 22 36 Robot Miss Streak 2 | . 2 2 . . 1 . Penetration Max . | . . . . . . . Secondary Targets 4 | . . 2 . . 2 . Max Gunslinging Chain 1 | . . 1 . . 1 . Shots Hit Robots 83 | . 9 33 . . 26 15 Core Hits 36 | . 6 15 1 . 9 5 Critical Hits . | . . . . . . . Critical Kills . | . . . . . . . Critical Parts Destroyed . | . . . . . . . Melee Attacks 1 | . . . . . . 1 Impact . | . . . . . . . Slashing . | . . . . . . . Piercing . | . . . . . . . Sneak Attacks . | . . . . . . . Combat Hostiles . | . . . . . . . Follow-up Attacks . | . . . . . . . Damage Inflicted 1151 | . 123 432 8 . 335 253 Guns 1110 | . 123 418 . . 332 237 Cannons . | . . . . . . . Explosions . | . . . . . . . Melee . | . . . . . . . Ramming 41 | . . 14 8 . 3 16 Kinetic 369 | . 47 206 . . 116 . Thermal 741 | . 76 212 . . 216 237 Explosive . | . . . . . . . Electromagnetic . | . . . . . . . Impact . | . . . . . . . Slashing . | . . . . . . . Piercing . | . . . . . . . Highest Corruption . | . . . . . . . Average Corruption . | . . . . . . . Corruption Purged . | . . . . . . . Overload Shots . | . . . . . . . Overflow Damage . | . . . . . . . Projectiles . | . . . . . . . Explosions . | . . . . . . . Melee . | . . . . . . . Knockbacks . | . . . . . . . Impact . | . . . . . . . Kinetic . | . . . . . . . Secondary . | . . . . . . . Self-Inflicted Damage 12 | . . . 4 . . 8 Shots . | . . . . . . . Rammed 8 | . . . 2 . 2 4 Targets Rammed 10 | . . 1 2 . 3 4 Kicked 2 | . . 1 . . 1 . Crushed . | . . . . . . . Highest Temperature 201 | . 36 117 . . 155 201 Average Temperature 59 | . 15 45 . . 65 95 Received Heat Transfer 705 | . . 174 . . 261 270 Siege Activations . | . . . . . . . Robots Corrupted . | . . . . . . . Combat Hostiles . | . . . . . . . Parts Fried . | . . . . . . . Impact Corruptions . | . . . . . . . Robots Melted . | . . . . . . . Combat Hostiles . | . . . . . . . Parts Melted . | . . . . . . . Heat Transferred 1913 | . 222 618 . . 555 518 Parts Sabotaged . | . . . . . . . Parts Stolen . | . . . . . . . Parts Stripped . | . . . . . . . Power Chain Reactions . | . . . . . . . Missiles Intercepted . | . . . . . . . Alert | -11 -10 -9 -9 -9 -8 -8 ------- Run | Scr Mat Mat Min Exi Min Mat Peak Influence 309 | . 208 309 40 . 40 90 Initial 74 | . . 74 40 . . . Average 81 | . 119 161 40 . 1 41 Maximum Alert Level 1 | . 1 1 . . . . Low Security (%) 90 | 100 96 66 100 . 100 100 Level 1 9 | . 3 33 . . . . Level 2 . | . . . . . . . Level 3 . | . . . . . . . Level 4 . | . . . . . . . Level 5 . | . . . . . . . High Security . | . . . . . . . Max Security . | . . . . . . . Squads Dispatched 4 | . . 3 . . . 1 Investigation 1 | . . 1 . . . . Extermination . | . . . . . . . Reinforcement 3 | . . 2 . . . 1 Assault . | . . . . . . . Garrison . | . . . . . . . Intercept . | . . . . . . . Construction Impeded . | . . . . . . . Haulers Reinforced . | . . . . . . . Stealth | -11 -10 -9 -9 -9 -8 -8 --------- Run | Scr Mat Mat Min Exi Min Mat Distress Signals 4 | . . 4 . . . . Communications Jammed . | . . . . . . . Distress Signals . | . . . . . . . Times Spotted 44 | . 9 25 . . 4 6 Peak Tracking Total 7 | . 4 7 . . 3 4 Tactical Retreats 4 | . 1 2 . . . 1 Traps | -11 -10 -9 -9 -9 -8 -8 ------- Run | Scr Mat Mat Min Exi Min Mat Traps Triggered 1 | . . . . . . 1 Indirectly . | . . . . . . . Trap Hack Attempts . | . . . . . . . Triggered . | . . . . . . . Disarmed . | . . . . . . . Reprogrammed . | . . . . . . . Reused . | . . . . . . . Traps Extracted . | . . . . . . . Installed . | . . . . . . . Triggered . | . . . . . . . Machines | -11 -10 -9 -9 -9 -8 -8 ---------- Run | Scr Mat Mat Min Exi Min Mat Machines Disabled . | . . . . . . . Max in Single Turn . | . . . . . . . Machines Sabotaged . | . . . . . . . Garrisons Compromised . | . . . . . . . Overloaded Fab Kills . | . . . . . . . Fab Network Shutdowns . | . . . . . . . Hacking | -11 -10 -9 -9 -9 -8 -8 --------- Run | Scr Mat Mat Min Exi Min Mat Machines Accessed 3 | . 2 . . 1 . . Terminals 2 | . 2 . . . . . Fabricators . | . . . . . . . Repair Stations . | . . . . . . . Recycling Units . | . . . . . . . Scanalyzers . | . . . . . . . Garrison Access . | . . . . . . . Total Hacks 27 | . 4 . . 23 . . Successful 25 | . 2 . . 23 . . Failed 2 | . 2 . . . . . Catastrophic 1 | . 1 . . . . . Database Lockouts . | . . . . . . . Manual 3 | . 3 . . . . . Terminals 4 | . 4 . . . . . Fabricators . | . . . . . . . Repair Stations . | . . . . . . . Recycling Units . | . . . . . . . Scanalyzers . | . . . . . . . Garrison Access . | . . . . . . . Terminal Hacks 25 | . 2 . . 23 . . Record 23 | . . . . 23 . . Robot Analysis 1 | . 1 . . . . . Level Access Points 1 | . 1 . . . . . Fabricator Hacks . | . . . . . . . Repair Station Hacks . | . . . . . . . Recycling Unit Hacks . | . . . . . . . Scanalyzer . | . . . . . . . Garrison Access Hacks . | . . . . . . . Unauthorized Hacks . | . . . . . . . Terminals . | . . . . . . . Fabricators . | . . . . . . . Repair Stations . | . . . . . . . Recycling Units . | . . . . . . . Scanalyzers . | . . . . . . . Garrison Access . | . . . . . . . Data Cores Recovered . | . . . . . . . Used . | . . . . . . . Hacking Detections 2 | . 2 . . . . . Full Trace Events . | . . . . . . . Feedback Events . | . . . . . . . Feedback Blocked . | . . . . . . . Robot Schematics Acquired . | . . . . . . . Robots Built . | . . . . . . . Matter . | . . . . . . . Time . | . . . . . . . Total Robot Build Rating . | . . . . . . . Part Schematics Acquired . | . . . . . . . Parts Built . | . . . . . . . Matter . | . . . . . . . Time . | . . . . . . . Total Part Build Rating . | . . . . . . . Parts Repaired . | . . . . . . . Time . | . . . . . . . Parts Recycled . | . . . . . . . Recycled Matter . | . . . . . . . Retrieved Matter . | . . . . . . . Retrieved Components . | . . . . . . . Parts Scanalyzed . | . . . . . . . Part Schematics Acquired . | . . . . . . . Parts Damaged . | . . . . . . . Bothacking | -11 -10 -9 -9 -9 -8 -8 ------------ Run | Scr Mat Mat Min Exi Min Mat Used RIF Installer . | . . . . . . . Robots Hacked 1 | . . . . . . 1 Non-combat . | . . . . . . . Combat 1 | . . . . . . 1 Robot Hacks Applied 1 | . . . . . . 1 parse_system 1 | . . . . . . 1 Relay Couplers Released . | . . . . . . . Robots Rewired . | . . . . . . . Allies Hacked . | . . . . . . . Hacks Repelled . | . . . . . . . Allies | -11 -10 -9 -9 -9 -8 -8 -------- Run | Scr Mat Mat Min Exi Min Mat Total Allies . | . . . . . . . Largest Group . | . . . . . . . Highest-Rated Group . | . . . . . . . Highest-Rated Ally . | . . . . . . . Total Orders . | . . . . . . . Ally Attacks . | . . . . . . . Total Damage . | . . . . . . . Kills . | . . . . . . . Allies Corrupted . | . . . . . . . Allies Melted . | . . . . . . . Intel | -11 -10 -9 -9 -9 -8 -8 ------- Run | Scr Mat Mat Min Exi Min Mat Robot Analysis Total 1 | . 1 . . . . . Derelict Logs Recovered . | . . . . . . . Drone Launches . | . . . . . . . Drone Recoveries . | . . . . . . . Exploration | -11 -10 -9 -9 -9 -8 -8 ------------- Run | Scr Mat Mat Min Exi Min Mat Turns Passed 2235 | 60 328 409 128 676 263 371 Spaces Moved 1274 | 44 196 206 84 451 122 171 Core 29 | 8 . . . . 3 18 Treads . | . . . . . . . Legs 1237 | 36 196 206 84 451 119 145 Wheels . | . . . . . . . Hover . | . . . . . . . Flight 8 | . . . . . . 8 Fastest Speed 50 | 50 120 150 150 120 150 120 Average Speed 152 | 113 140 150 150 149 156 183 Slowest Speed 500 | 150 150 150 150 150 450 500 Overloaded Moves . | . . . . . . . Propulsion Burnouts . | . . . . . . . Robots Hopped . | . . . . . . . Cave-ins Triggered . | . . . . . . . Exploration Rate (%) 32 | 4 35 28 34 76 35 15 Regions Visited 6 Branch Regions 3 Pre-discovered Areas 1 | . . . . 1 . . Known Exits Taken 1 | . 1 . . . . . Unknown Exits Taken 5 | 1 . 1 1 1 1 . Scrap Searched . | . . . . . . . Spaces Dug . | . . . . . . . Terrain Destroyed . | . . . . . . . Melee . | . . . . . . . Projectile . | . . . . . . . AOE . | . . . . . . . Terrain Rammed . | . . . . . . . Walls Destroyed . | . . . . . . . Machines Disabled . | . . . . . . . Actions | -11 -10 -9 -9 -9 -8 -8 --------- Run | Scr Mat Mat Min Exi Min Mat Total 1452 | 51 234 267 85 452 154 209 Wait 57 | . 26 12 . . 7 12 Move 1268 | 43 195 205 83 450 121 171 Hop . | . . . . . . . Pick Up 15 | 2 3 10 . . . . Fast Attach 17 | 6 1 4 . . 1 5 Attach 5 | . . 1 . 1 2 1 Detach 4 | . . 2 . 1 . 1 Swap 4 | . 1 2 . . 1 . Drop 10 | . 1 9 . . . . Fire 61 | . 7 21 . . 19 14 Melee 1 | . . . . . . 1 Ram 2 | . . . . . 2 . Kick 8 | . . 1 2 . 1 4 Crush . | . . . . . . . Escape Stasis . | . . . . . . . Rewire . | . . . . . . . Trap . | . . . . . . . Miscellaneous . | . . . . . . . Route ------- -11/Scrapyard -10/Materials (discovered 3 exits: *Mat x3) -9/Materials -9/Mines (discovered 2 exits: [*Mat] / *Exi) -9/Exiles -8/Mines -8/Materials History --------- Turn | Location | Event 32 | -11/Scrapyard | Discovered new exit (range 16) 61 | -11/Scrapyard | Entered Materials 237 | -10/Materials | Identified exit to Materials 307 | -10/Materials | Build established: Mutant 389 | -10/Materials | Entered another Materials area 389 | -9/Materials | Evolved 2 slots: Propulsion x1, Utility x1 575 | -9/Materials | Met 8R-AWN 626 | -9/Materials | Discovered new exit (range 15) 798 | -9/Materials | Entered Mines 800 | -9/Mines | Followed 8R-AWN into the Mines 845 | -9/Mines | Discovered new exit (range 9) 920 | -9/Mines | Discovered new exit (range 5) 926 | -9/Mines | Entered Exiles 970 | -9/Exiles | Welcomed by 8R-AWN 996 | -9/Exiles | Met EX-HEX 1072 | -9/Exiles | Met EX-DEC 1107 | -9/Exiles | Learned location of Zion (-7) 1182 | -9/Exiles | Discovered new exit (range 14) 1313 | -9/Exiles | Visited The Gauntlet 1602 | -9/Exiles | Entered Mines 1837 | -8/Mines | Core integrity fell below 50% 1857 | -8/Mines | Discovered new exit (range 5) 1865 | -8/Mines | Entered Materials 1865 | -8/Materials | Evolved 2 slots: Propulsion x1, Utility x1 1877 | -8/Materials | Lost 7 parts (3n1u3w) 2236 | -8/Materials | Self-destructed Last Messages --------------- Acquired Imp. Power Shielding. Acquired Lgt. Deuterium Engine. Slammed into Y-45 Defender. Aluminum Leg destroyed. Acquired Pulse Rifle. Y-45 Defender destroyed. R-06 Scavenger collects Hvy. Assault Rifle. R-06 Scavenger collects Lgt. Armor Plating. Y-45 Defender destroyed. Acquired 34 matter. Acquired 1 matter. R-06 Scavenger collects Lgt. Treads. Acquired Imp. Datajack. Acquired Prototype Flight Unit. Identified Imp. VTOL Module. Adv. Sensor Array destroyed. Pulse Rifle destroyed. Jacked G-47 Trooper... >>parse_system Reading system data... Map ----- +----------------------------------------------------+ | ???????????????????????????????????? | | ???????????????#########???????????? | | ?????????###???# #??????????? | | ????????##!!#### """ #??????????? | | ????????#! # """ #??######### | | ????????#! # """ #??# | | ????????#! + #??# """"" | | ????????#! # """ #??# """"" | | ????????##!! # """ #??# """"" | | ?????????#### # """ #??# """"" | | ????????????# # #??# """"" | | ????????????# ##########??# """"" | | ############# #???????????# """"" | | # """" # #???????????# | | # ""S"" # #???????????######### | | # "" "" # #????????????######## | | # = + ############## | | # # | | # # | | ############# ################ | | ???#* # #??????????????# | | ???# " # #??????????????? | | ???# ** T + #??????????????? | | ???# ** " # #??????????????? | | ???# ** % # #??????????????? | | ???# """@# #??????????????? | | ???# """ + #??????????????? | | ???# """ # #??????????????? | | ??# # #??????????????? | | ??############+## #??????????????? | | ????????????????# ????????????? | | ????????????????# ??????????? | | ????????????????? ??????????? | | ?????????????????? ???????????? | | ?????????????????? * ?????????????? | | ???????????????????????????????????? | | ???????????????????????????????????? | | ???????????????????????????????????? | | ???????????????????????????????????? | | ???????????????????????????????????? | | ???????????????????????????????????? | | ???????????????????????????????????? | | ???????????????????????????????????? | | ???????????????????????????????????? | | ???????????????????????????????????? | | ???????????????????????????????????? | | ???????????????????????????????????? | | ???????????????????????????????????? | | ???????????????????????????????????? | | ???????????????????????????????????? | +----------------------------------------------------+ Best States ------------- Heat Dissipation 31 Energy Generation 14 Energy Capacity 240 Matter Stores 300 Matter Capacity 500 Sight Range 16 Robot Scan Range 16 Terrain Scan Density 10 Resistance: KI 20 Resistance: TH 20 Resistance: EX 20 Resistance: EM 20 Resistance: I 20 Resistance: S 20 Resistance: P 20 Power Shielding 66 Evasion (%) 40 Offensive Hacking 10 Item Schematics ----------------- None Robot Schematics ------------------ None Fabricated ------------ Nothing Alien Tech Used ----------------- None Achievements -------------- None Challenges ------------ None Game ------ Seed AbsorptionAssemblyMantle Manual? 0 Play Time 00:15:58 Cumulative 21.3 hours Start 2021.01.09 @ 23:12:23 End 2021.01.09 @ 23:27:08 Sessions 1 Manual Loads 0 Difficulty Adventurer Special Mode None Game No. 27 Rogue 0 Adventurer 27 Explorer 0 Win Type - Total 0 Types 0/0/0/0/0/0/0/0/0 Lore% 17 Gallery% 28 Achievement% 21 Wizard Run 0 Options --------- ASCII 0 Keyboard 1 Movement Numpad Keybinds 0 Fullscreen 2 Font 18/SmallcapsGlow Map View 76x50 Tactical HUD 0 Map Filters NONE Filters NONE Steam 1 RUN: 6dff7cdc-5e3b-423a-b694-2bc905858894